fUSD/lending_fUSD_20250107
["ID","MTS","AMOUNT","RATE_DAILY","PERIOD"]
[348007720,1736265063430,-757.19,0.00010959,2]
[348007721,1736265063440,-479.7092412,0.00010959,2]
[348007722,1736265063450,-1119.34,0.00010959,2]
[348007723,1736265063460,-500.0,0.00010959,2]
[348007724,1736265063470,-404.23104143,0.00010959,2]
[348007725,1736265063480,-500.0,0.00010959,2]
[348007726,1736265063490,-600.71,0.00010959,2]
[348007727,1736265063500,-671.21,0.00010959,2]
[348007728,1736265063515,-500.0,0.00010959,2]
[348007729,1736265063526,-500.0,0.00010959,2]
[348007730,1736265063536,-527.0,0.00010959,2]
[348007731,1736265063547,-500.0,0.00010959,2]
[348007732,1736265063556,-500.0,0.00010959,2]
[348007733,1736265063567,-500.0,0.00010959,2]
[348007734,1736265063578,-636.59,0.00010959,2]
[348007735,1736265063589,-1014.28,0.00010959,2]
[348007736,1736265063599,-500.0,0.00010959,2]
[348007737,1736265063609,-500.0,0.00010959,2]
[348007738,1736265063620,-500.0,0.00010959,2]
[348007739,1736265063629,-588.03,0.00010959,2]
[348007740,1736265063639,-500.0,0.00010959,2]
[348007741,1736265063649,-500.0,0.00010959,2]
[348007742,1736265063659,-500.0,0.00010959,2]
[348007743,1736265063669,-500.0,0.00010959,2]
[348007744,1736265063679,-652.97,0.00010959,2]
[348007745,1736265063689,-666.04,0.00010959,2]
[348007746,1736265063700,-500.0,0.00010959,2]
[348007747,1736265063710,-566.83,0.00010959,2]
[348007748,1736265063720,-500.0,0.00010959,2]
[348007749,1736265063729,-500.0,0.00010959,2]
[348007750,1736265063743,-786.18,0.00010959,2]
[348007751,1736265063754,-1323.86,0.00010959,2]
[348007752,1736265063767,-521.1,0.00010959,2]
[348007753,1736265063778,-686.38,0.00010959,2]
[348007754,1736265063788,-638.58,0.00010959,2]
[348007755,1736265063799,-832.18,0.00010959,2]
[348007756,1736265063809,-583.76,0.00010959,2]
[348007757,1736265063820,-500.0,0.00010959,2]
[348007758,1736265063830,-678.69,0.00010959,2]
[348007759,1736265063840,-500.0,0.00010959,2]
[348007760,1736265063849,-720.39,0.00010959,2]
[348007761,1736265063859,-500.0,0.00010959,2]
[348007762,1736265063869,-624.19,0.00010959,2]
[348007763,1736265063879,-542.2,0.00010959,2]
[348007764,1736265063889,-880.19,0.00010959,2]
[348007765,1736265063898,-584.65,0.00010959,2]
[348007766,1736265063908,-500.0,0.00010959,2]
[348007767,1736265063918,-500.0,0.00010959,2]
[348007768,1736265063928,-275.9288112,0.00010959,2]
[348007769,1736265063943,-224.0711888,0.00010959,2]
[348007770,1736265063953,-190.12407678,0.00010959,2]
[348007771,1736265063965,-309.87592322,0.00010959,2]
[348007772,1736265063976,-256.65667678,0.00010959,2]
[348007773,1736265063988,-243.34332322,0.00010959,2]
[348007774,1736265063998,-365.01380627,0.00010959,2]
[348007775,1736265064017,-134.98619373,0.00010959,2]
[348007776,1736265064027,-719.43,0.00010959,2]
[348007777,1736265064037,-500.0,0.00010959,2]
[348007778,1736265064047,-909.73,0.00010959,2]
[348007779,1736265064057,-665.41,0.00010959,2]
[348007780,1736265064068,-609.83,0.00010959,2]
[348007781,1736265064078,-500.0,0.00010959,2]
[348007782,1736265064088,-500.0,0.00010959,2]
[348007783,1736265064098,-500.0,0.00010959,2]
[348007784,1736265064108,-833.83,0.00010959,2]
[348007785,1736265064119,-500.0,0.00010959,2]
[348007786,1736265064129,-1112.59,0.00010959,2]
[348007787,1736265064139,-644.2,0.00010959,2]
[348007788,1736265064149,-601.86,0.00010959,2]
[348007789,1736265064159,-1147.57,0.00010959,2]
[348007790,1736265064169,-500.0,0.00010959,2]
[348007791,1736265064178,-500.0,0.00010959,2]
[348007792,1736265064188,-682.28,0.00010959,2]
[348007793,1736265064198,-967.08,0.00010959,2]
[348007794,1736265064208,-526.36742151,0.00010959,2]
[348007795,1736265064218,-500.0,0.00010959,2]
[348007796,1736265064229,-500.0,0.00010959,2]
[348007797,1736265064240,-500.0,0.00010959,2]
[348007798,1736265064249,-500.0,0.00010959,2]
[348007799,1736265064262,-500.0,0.00010959,2]
[348007800,1736265064272,-576.44,0.00010959,2]
[348007801,1736265064282,-500.0,0.00010959,2]
[348007802,1736265064293,-503.81,0.00010959,2]
[348007803,1736265064302,-670.32,0.00010959,2]
[348007804,1736265064313,-500.0,0.00010959,2]
[348007805,1736265064323,-500.0,0.00010959,2]
[348007806,1736265064334,-600.86,0.00010959,2]
[348007807,1736265064344,-500.0,0.00010959,2]
[348007808,1736265064357,-760.93,0.00010959,2]
[348007809,1736265064367,-1513.34,0.00010959,2]
[348007810,1736265064378,-500.0,0.00010959,2]
[348007811,1736265064389,-1293.9,0.00010959,2]
[348007812,1736265064399,-533.23,0.00010959,2]
[348007813,1736265064409,-500.0,0.00010959,2]
[348007814,1736265064419,-500.0,0.00010959,2]
[348007815,1736265064429,-1562.06,0.00010959,2]
[348007816,1736265064439,-500.0,0.00010959,2]
[348007817,1736265064449,-1301.28,0.00010959,2]
[348007818,1736265064460,-353.68138949,0.00010972,2]
[348007819,1736265064470,-400.0,0.00010986,2]
[348007820,1736265064480,-550.0,0.00011,2]
[348007821,1736265064491,-5402.29846141,0.00011,2]
[348007822,1736265064501,-150.0,0.0001102,2]
[348007823,1736265064518,-507.52,0.0001106,2]
[348007824,1736265064528,-1895.99,0.0001106,2]
[348007825,1736265064538,-1901.26,0.0001106,2]
[348007826,1736265064547,-2491.67,0.0001106,2]
[348007827,1736265064558,-1236.88885565,0.0001106,2]
[348007828,1736265064571,-610.87114435,0.0001106,2]
[348007829,1736265064581,-2407.36,0.0001106,2]
[348007830,1736265064591,-2187.63,0.0001106,2]
[348007831,1736265064602,-4786.02,0.0001106,2]
[348007832,1736265064802,-4051.67,0.0001106,2]
[348007833,1736265064813,-500.0,0.0001106,2]
[348007834,1736265064822,-1859.52,0.0001106,2]
[348007835,1736265064832,-3091.01845566,0.0001106,2]
[348007836,1736265064844,-1698.52154434,0.0001106,2]
[348007837,1736265064853,-500.0,0.0001106,2]
[348007838,1736265064863,-781.91,0.0001106,2]
[348007839,1736265064873,-500.0,0.0001106,2]
[348007840,1736265064883,-553.06,0.0001106,2]
[348007841,1736265064892,-1045.29,0.0001106,2]
[348007842,1736265064902,-712.3,0.0001106,2]
[348007843,1736265064912,-551.81,0.0001106,2]
[348007844,1736265064921,-500.0,0.0001106,2]
[348007845,1736265064931,-624.46,0.0001106,2]
[348007846,1736265064940,-500.0,0.0001106,2]
[348007847,1736265064949,-843.89,0.0001106,2]
[348007848,1736265064959,-593.28,0.0001106,2]
[348007849,1736265064969,-1066.73,0.0001106,2]
[348007850,1736265064979,-500.0,0.0001106,2]
[348007851,1736265064988,-1446.68,0.0001106,2]
[348007852,1736265064997,-609.58,0.0001106,2]
[348007853,1736265065010,-1490.63,0.0001106,2]
[348007854,1736265065020,-822.63,0.0001106,2]
[348007855,1736265065029,-500.0,0.0001106,2]
[348007856,1736265065039,-1028.11,0.0001106,2]
[348007857,1736265065049,-790.24,0.0001106,2]
[348007858,1736265065059,-716.8,0.0001106,2]
[348007859,1736265065068,-1049.17,0.0001106,2]
[348007860,1736265065079,-1080.02,0.0001106,2]
[348007861,1736265065088,-2360.61,0.0001106,2]
[348007862,1736265065098,-1733.37,0.0001106,2]
[348007863,1736265065108,-657.27,0.0001106,2]
[348007864,1736265065117,-500.0,0.0001106,2]
[348007865,1736265065127,-664.01,0.0001106,2]
[348007866,1736265065137,-1412.48,0.0001106,2]
[348007867,1736265065146,-2045.59,0.0001106,2]
[348007868,1736265065156,-500.0,0.0001106,2]
[348007869,1736265065165,-1850.57,0.0001106,2]
[348007870,1736265065175,-1821.01,0.0001106,2]
[348007871,1736265065184,-1409.33,0.0001106,2]
[348007872,1736265065193,-707.06,0.0001106,2]
[348007873,1736265065203,-1980.86,0.0001106,2]
[348007874,1736265065213,-1204.09,0.0001106,2]
[348007875,1736265065223,-500.0,0.0001106,2]
[348007876,1736265065232,-2080.6,0.0001106,2]
[348007877,1736265065241,-1340.44,0.0001106,2]
[348007878,1736265065251,-500.0,0.0001106,2]
[348007879,1736265065264,-2491.17,0.0001106,2]
[348007880,1736265065274,-689.18,0.0001106,2]
[348007881,1736265065284,-500.0,0.0001106,2]
[348007882,1736265065293,-4141.29,0.0001106,2]
[348007883,1736265065303,-919.66,0.0001106,2]
[348007884,1736265065313,-500.0,0.0001106,2]
[348007885,1736265065323,-589.62,0.0001106,2]
[348007886,1736265065332,-4413.74,0.0001106,2]
[348007887,1736265065342,-2162.98,0.0001106,2]
[348007888,1736265065354,-793.65,0.0001106,2]
[348007889,1736265065365,-2430.36,0.0001106,2]
[348007890,1736265065375,-2436.06,0.0001106,2]
[348007891,1736265065384,-851.57,0.0001106,2]
[348007892,1736265065394,-1422.27,0.0001106,2]
[348007893,1736265065403,-3956.33,0.0001106,2]
[348007894,1736265065412,-500.0,0.0001106,2]
[348007895,1736265065422,-500.0,0.00011061,2]
[348007896,1736265065431,-500.0,0.00011061,2]
[348007897,1736265065441,-500.0,0.00011061,2]
[348007898,1736265065451,-575.50446804,0.00011061,2]
[348007899,1736265065460,-500.0,0.00011061,2]
[348007900,1736265065470,-500.0,0.00011061,2]
[348007901,1736265065480,-500.0,0.00011061,2]
[348007902,1736265065489,-500.0,0.00011061,2]
[348007903,1736265065499,-500.0,0.00011061,2]
[348007904,1736265065512,-500.0,0.00011061,2]
[348007905,1736265065521,-500.0,0.00011061,2]
[348007906,1736265065531,-500.0,0.00011061,2]
[348007907,1736265065541,-585.53,0.00011061,2]
[348007908,1736265065551,-500.0,0.00011061,2]
[348007909,1736265065561,-500.0,0.00011061,2]
[348007910,1736265065571,-601.99,0.00011061,2]
[348007911,1736265065582,-500.0,0.00011061,2]
[348007912,1736265065591,-500.0,0.00011061,2]
[348007913,1736265065601,-500.0,0.00011061,2]
[348007914,1736265065611,-1441.97,0.00011061,2]
[348007915,1736265065621,-3363.88,0.00011061,2]
[348007916,1736265065632,-523.39,0.00011061,2]
[348007917,1736265065642,-1476.58,0.00011061,2]
[348007918,1736265065653,-1763.05,0.00011061,2]
[348007919,1736265065663,-612.06,0.00011061,2]
[348007920,1736265065673,-2410.75,0.00011061,2]
[348007921,1736265065683,-1380.07,0.00011061,2]
[348007922,1736265065693,-1213.68,0.00011061,2]
[348007923,1736265065703,-1557.45,0.00011061,2]
[348007924,1736265065713,-980.03,0.00011061,2]
[348007925,1736265065722,-1182.78,0.00011061,2]
[348007926,1736265065733,-3662.63,0.00011061,2]
[348007927,1736265065745,-2916.88,0.00011064,2]
[348007928,1736265065757,-5847.21,0.00011094,2]
[348007929,1736265065768,-1155.6,0.00011094,2]
[348007930,1736265065778,-4244.68,0.00011094,2]
[348007931,1736265065789,-1043.38,0.00011094,2]
[348007932,1736265065799,-500.0,0.00011094,2]
[348007933,1736265065810,-1689.0,0.00011094,2]
[348007934,1736265065821,-293.0,0.00011096,2]
[348007935,1736265065832,-353.68138949,0.00011121,2]
[348007936,1736265065842,-200.0,0.00011171,2]
[348007937,1736265065851,-200.0,0.00011186,2]
[348007938,1736265065861,-200.0,0.00011188,2]
[348007939,1736265065871,-200.0,0.00011189,2]
[348007940,1736265065880,-200.0,0.00011191,2]
[348007941,1736265065890,-200.0,0.00011195,2]
[348007942,1736265065899,-200.0,0.000112,2]
[348007943,1736265065909,-1000.0,0.0001123,2]
[348007944,1736265065919,-518.79,0.00011231,2]
[348007945,1736265065928,-3250.34,0.00011231,2]
[348007946,1736265065937,-5614.38,0.00011231,2]
[348007947,1736265065946,-2894.08,0.00011231,2]
[348007948,1736265065955,-537.75,0.00011231,2]
[348007949,1736265065966,-1809.44,0.00011231,2]
[348007950,1736265065975,-500.0,0.00011231,2]
[348007951,1736265065986,-500.0,0.00011231,2]
[348007952,1736265065996,-4132.01640566,0.00011231,2]
[348007953,1736265066084,-370.65359434,0.00011231,2]
[348007954,1736265066094,-1623.05,0.00011231,2]
[348007955,1736265066104,-96.69655066,0.00011231,2]
[348007956,1736265066116,-1152.07344934,0.00011231,2]
[348007957,1736265066125,-2424.72,0.00011231,2]
[348007958,1736265066135,-1058.59,0.00011231,2]
[348007959,1736265066144,-1345.57,0.00011231,2]
[348007960,1736265066154,-435.56702273,0.00011232,2]
[348007961,1736265066165,-64.43297727,0.00011232,2]
[348007962,1736265066175,-723.82,0.00011232,2]
[348007963,1736265066185,-500.0,0.00011232,2]
[348007964,1736265066194,-888.27,0.00011232,2]
[348007965,1736265066204,-500.0,0.00011232,2]
[348007966,1736265066213,-504.08,0.00011232,2]
[348007967,1736265066222,-988.57,0.00011232,2]
[348007968,1736265066231,-1259.11,0.00011232,2]
[348007969,1736265066242,-988.95,0.00011232,2]
[348007970,1736265066251,-1361.94,0.00011232,2]
[348007971,1736265066265,-500.0,0.00011232,2]
[348007972,1736265066275,-614.17,0.00011232,2]
[348007973,1736265066285,-559.75,0.00011232,2]
[348007974,1736265066294,-506.42,0.00011232,2]
[348007975,1736265066303,-572.32,0.00011232,2]
[348007976,1736265066313,-589.81,0.00011232,2]
[348007977,1736265066322,-701.08,0.00011232,2]
[348007978,1736265066331,-1093.2,0.00011232,2]
[348007979,1736265066341,-500.0,0.00011232,2]
[348007980,1736265066350,-500.0,0.00011232,2]
[348007981,1736265066360,-1052.02,0.00011232,2]
[348007982,1736265066370,-520.13,0.00011232,2]
[348007983,1736265066379,-357.93852923,0.00011232,2]
[348007984,1736265066392,-670.29147077,0.00011232,2]
[348007985,1736265066401,-501.43,0.00011232,2]
[348007986,1736265066411,-622.15,0.00011232,2]
[348007987,1736265066420,-500.0,0.00011232,2]
[348007988,1736265066430,-1831.56,0.00011232,2]
[348007989,1736265066438,-472.86229923,0.00011232,2]
[348007990,1736265066480,-27.13770077,0.00011232,2]
[348007991,1736265066489,-500.0,0.00011232,2]
[348007992,1736265066499,-500.0,0.00011232,2]
[348007993,1736265066512,-380.57386954,0.00011232,2]
[348007994,1736265066523,-725.08613046,0.00011232,2]
[348007995,1736265066532,-676.24,0.00011232,2]
[348007996,1736265066542,-638.4,0.00011232,2]
[348007997,1736265066551,-1252.09,0.00011232,2]
[348007998,1736265066561,-608.86,0.00011232,2]
[348007999,1736265066571,-500.0,0.00011232,2]
[348008000,1736265066580,-3035.28,0.00011232,2]
[348008001,1736265066590,-1504.37,0.00011232,2]
[348008002,1736265066599,-884.82,0.00011232,2]
[348008003,1736265066609,-1169.96,0.00011232,2]
[348008004,1736265066620,-500.0,0.00011232,2]
[348008005,1736265066630,-500.0,0.00011232,2]
[348008006,1736265066639,-500.0,0.00011232,2]
[348008007,1736265066648,-500.0,0.00011232,2]
[348008008,1736265066658,-1008.90506014,0.00011232,2]
[348008009,1736265066670,-214.11493986,0.00011232,2]
[348008010,1736265066680,-500.0,0.00011232,2]
[348008011,1736265066690,-4596.35,0.00011232,2]
[348008012,1736265066700,-650.89,0.00011232,2]
[348008013,1736265066711,-581.61,0.00011232,2]
[348008014,1736265066720,-500.0,0.00011232,2]
[348008015,1736265066730,-500.0,0.00011232,2]
[348008016,1736265066743,-500.0,0.00011232,2]
[348008017,1736265066753,-500.0,0.00011232,2]
[348008018,1736265066766,-500.0,0.00011232,2]
[348008019,1736265066775,-500.0,0.00011232,2]
[348008020,1736265066785,-3022.12,0.00011232,2]
[348008021,1736265066794,-500.0,0.00011232,2]
[348008022,1736265066804,-551.73,0.00011232,2]
[348008023,1736265066813,-546.67,0.00011232,2]
[348008024,1736265066822,-87.99607474,0.00011232,2]
[348008025,1736265066834,-421.19392526,0.00011232,2]
[348008026,1736265066844,-608.28,0.00011232,2]
[348008027,1736265066854,-515.829035,0.00011232,2]
[348008028,1736265066864,-1413.33,0.00011232,2]
[348008029,1736265066873,-973.9,0.00011232,2]
[348008030,1736265066883,-500.0,0.00011232,2]
[348008031,1736265066892,-500.0,0.00011232,2]
[348008032,1736265066902,-500.0,0.00011232,2]
[348008033,1736265066911,-798.67,0.00011232,2]
[348008034,1736265066921,-500.0,0.00011232,2]
[348008035,1736265066930,-693.28,0.00011232,2]
[348008036,1736265066940,-2177.28,0.00011232,2]
[348008037,1736265066950,-520.07,0.00011232,2]
[348008038,1736265066960,-717.54,0.00011232,2]
[348008039,1736265066970,-543.7,0.00011232,2]
[348008040,1736265066979,-500.0,0.00011232,2]
[348008041,1736265066989,-500.0,0.00011232,2]
[348008042,1736265066999,-500.0,0.00011232,2]
[348008043,1736265067012,-558.743417,0.00011232,2]
[348008044,1736265067021,-835.03494223,0.00011232,2]
[348008045,1736265067101,-386.64505777,0.00011232,2]
[348008046,1736265067110,-19.43494236,0.00011232,2]
[348008047,1736265067123,-480.56505764,0.00011232,2]
[348008048,1736265067133,-500.0,0.00011232,2]
[348008049,1736265067142,-0.43494236,0.00011232,2]
[348008050,1736265067155,-3046.87505764,0.00011232,2]
[348008051,1736265067164,-584.55863506,0.00011232,2]
[348008054,1736265077028,500.0,0.00017,60]
[348008055,1736265079007,3303.10221082,5.481e-05,7]
[348008060,1736265516162,-3938.65,8e-05,2]
[348008061,1736265516196,-164.81,9.425e-05,2]
[348008062,1736265516222,-1000.0,9.458e-05,2]
[348008063,1736265516247,-250.0,9.557e-05,2]
[348008064,1736265516271,-3488.62115636,9.623e-05,2]
[348008065,1736265516297,-250.0,9.623e-05,2]
[348008066,1736265516321,-1986.8391,9.738e-05,2]
[348008067,1736265516346,-4806.1797,9.738e-05,2]
[348008068,1736265516370,-1267.9896,9.738e-05,2]
[348008069,1736265516394,-453.3355,9.738e-05,2]
[348008070,1736265516421,-5000.0,9.762e-05,2]
[348008071,1736265516446,-500.0,9.762e-05,2]
[348008072,1736265516472,-150.0,9.762e-05,2]
[348008073,1736265516496,-18394.7902,9.763e-05,2]
[348008074,1736265516524,-542.65939827,9.825e-05,2]
[348008075,1736265516551,-10192.0,9.834e-05,2]
[348008076,1736265516578,-625.41959516,9.861e-05,2]
[348008077,1736265516603,-500.0,9.861e-05,2]
[348008078,1736265516628,-500.0,9.861e-05,2]
[348008079,1736265516653,-500.0,9.861e-05,2]
[348008080,1736265516679,-500.0,9.861e-05,2]
[348008081,1736265516704,-500.0,9.861e-05,2]
[348008082,1736265516729,-500.0,9.861e-05,2]
[348008083,1736265516754,-500.0,9.861e-05,2]
[348008084,1736265516778,-501.55671603,9.861e-05,2]
[348008085,1736265516803,-762.26,9.861e-05,2]
[348008086,1736265516828,-564.93,9.861e-05,2]
[348008087,1736265516851,-500.85268257,9.861e-05,2]
[348008088,1736265516874,-500.0,9.861e-05,2]
[348008089,1736265516902,-500.0,9.861e-05,2]
[348008090,1736265516943,-502.12416471,9.861e-05,2]
[348008091,1736265516969,-830.68,9.861e-05,2]
[348008092,1736265516993,-501.45842499,9.861e-05,2]
[348008093,1736265517017,-500.30494021,9.861e-05,2]
[348008094,1736265517040,-812.84,9.861e-05,2]
[348008095,1736265517065,-237.86976817,9.861e-05,2]
[348008096,1736265517088,-500.0,9.861e-05,2]
[348008097,1736265517113,-500.0,9.861e-05,2]
[348008098,1736265517138,-503.25182189,9.861e-05,2]
[348008099,1736265517164,-506.8486396,9.861e-05,2]
[348008100,1736265517189,-500.0,9.861e-05,2]
[348008101,1736265517213,-500.0,9.861e-05,2]
[348008102,1736265517236,-500.0,9.861e-05,2]
[348008103,1736265517261,-500.0,9.861e-05,2]
[348008104,1736265517285,-500.0,9.861e-05,2]
[348008105,1736265517309,-500.0,9.861e-05,2]
[348008106,1736265517333,-861.57,9.861e-05,2]
[348008107,1736265517357,-532.3,9.861e-05,2]
[348008108,1736265517380,-500.0,9.861e-05,2]
[348008109,1736265517404,-1028.06,9.861e-05,2]
[348008110,1736265517432,-500.0,9.861e-05,2]
[348008111,1736265517472,-705.29,9.861e-05,2]
[348008112,1736265517498,-500.0,9.861e-05,2]
[348008113,1736265517523,-500.0,9.861e-05,2]
[348008114,1736265517549,-500.0,9.861e-05,2]
[348008115,1736265517577,-967.91,9.861e-05,2]
[348008116,1736265517602,-500.0,9.861e-05,2]
[348008117,1736265517627,-500.0,9.861e-05,2]
[348008118,1736265517652,-500.0,9.861e-05,2]
[348008119,1736265517679,-1012.76,9.861e-05,2]
[348008120,1736265517704,-537.01,9.861e-05,2]
[348008121,1736265517728,-827.51,9.861e-05,2]
[348008122,1736265517753,-558.65,9.861e-05,2]
[348008123,1736265517778,-500.0,9.861e-05,2]
[348008124,1736265517802,-500.0,9.861e-05,2]
[348008125,1736265517828,-507.94,9.861e-05,2]
[348008126,1736265517854,-500.0,9.861e-05,2]
[348008127,1736265517879,-2466.63,9.861e-05,2]
[348008128,1736265517904,-517.41,9.861e-05,2]
[348008129,1736265517930,-500.0,9.861e-05,2]
[348008130,1736265517956,-1256.04,9.861e-05,2]
[348008131,1736265517982,-504.79558784,9.861e-05,2]
[348008132,1736265518006,-395.88319079,9.861e-05,2]
[348008133,1736265518031,-1185.81,9.861e-05,2]
[348008134,1736265518063,-500.0,9.861e-05,2]
[348008135,1736265518088,-713.48,9.861e-05,2]
[348008136,1736265518114,-500.0,9.861e-05,2]
[348008137,1736265518140,-582.27,9.861e-05,2]
[348008138,1736265518165,-500.0,9.861e-05,2]
[348008139,1736265518191,-1055.48808993,9.861e-05,3]
[348008140,1736265518215,-500.0,9.861e-05,2]
[348008141,1736265518239,-150.99,9.861e-05,2]
[348008142,1736265518265,-500.0,9.861e-05,2]
[348008143,1736265518288,-1270.64,9.861e-05,2]
[348008144,1736265518312,-299.99,9.861e-05,2]
[348008145,1736265518336,-500.0,9.861e-05,2]
[348008146,1736265518363,-500.0,9.861e-05,2]
[348008147,1736265518388,-1096.56,9.861e-05,2]
[348008148,1736265518414,-500.0,9.861e-05,2]
[348008149,1736265518439,-500.0,9.861e-05,2]
[348008150,1736265518463,-682.02,9.861e-05,2]
[348008151,1736265518488,-731.51,9.861e-05,2]
[348008152,1736265518513,-500.0,9.861e-05,2]
[348008153,1736265518537,-500.0,9.861e-05,2]
[348008154,1736265518566,-2264.03,9.861e-05,2]
[348008155,1736265518591,-500.0,9.861e-05,2]
[348008156,1736265518616,-1101.73,9.861e-05,2]
[348008157,1736265518641,-690.65,9.861e-05,2]
[348008158,1736265518667,-500.0,9.861e-05,2]
[348008159,1736265518899,-847.23,9.861e-05,2]
[348008160,1736265518925,-521.28,9.861e-05,2]
[348008161,1736265518951,-579.61,9.861e-05,2]
[348008162,1736265518982,-897.49,9.861e-05,2]
[348008163,1736265519006,-500.0,9.861e-05,2]
[348008164,1736265519032,-915.48,9.861e-05,2]
[348008165,1736265519058,-8643.12,9.861e-05,2]
[348008166,1736265519082,-612.27,9.861e-05,2]
[348008167,1736265519106,-1084.1,9.861e-05,2]
[348008168,1736265519130,-980.21,9.861e-05,2]
[348008169,1736265519157,-4269.96,9.861e-05,2]
[348008170,1736265519185,-500.0,9.861e-05,2]
[348008171,1736265519209,-1358.58,9.861e-05,2]
[348008172,1736265519233,-666.41,9.861e-05,2]
[348008173,1736265519257,-500.0,9.861e-05,2]
[348008174,1736265519281,-500.0,9.861e-05,2]
[348008175,1736265519306,-823.41,9.861e-05,2]
[348008176,1736265519330,-500.0,9.861e-05,2]
[348008177,1736265519353,-500.0,9.861e-05,2]
[348008178,1736265519377,-500.0,9.861e-05,2]
[348008179,1736265519402,-1564.72,9.861e-05,2]
[348008180,1736265519430,-4911.27,9.861e-05,2]
[348008181,1736265519455,-1112.37,9.861e-05,2]
[348008182,1736265519479,-500.0,9.861e-05,2]
[348008183,1736265519502,-500.0,9.861e-05,2]
[348008184,1736265519525,-500.0,9.861e-05,2]
[348008185,1736265519550,-500.0,9.861e-05,2]
[348008186,1736265519576,-611.35,9.861e-05,2]
[348008187,1736265519601,-1155.21,9.861e-05,2]
[348008188,1736265519626,-983.06,9.861e-05,2]
[348008189,1736265519650,-500.0,9.862e-05,2]
[348008190,1736265519678,-500.0,9.862e-05,2]
[348008191,1736265519703,-500.0,9.862e-05,2]
[348008192,1736265519726,-500.0,9.862e-05,2]
[348008193,1736265519750,-500.0,9.862e-05,2]
[348008194,1736265519774,-500.62329913,9.862e-05,2]
[348008195,1736265519797,-500.0,9.862e-05,2]
[348008196,1736265519825,-500.0,9.862e-05,2]
[348008197,1736265519847,-500.0,9.862e-05,2]
[348008198,1736265519871,-500.0,9.862e-05,2]
[348008199,1736265519895,-500.0,9.862e-05,2]
[348008200,1736265519922,-563.99,9.862e-05,2]
[348008201,1736265519946,-500.0,9.862e-05,2]
[348008202,1736265519972,-500.0,9.862e-05,2]
[348008203,1736265519997,-500.0,9.862e-05,2]
[348008204,1736265520021,-500.0,9.862e-05,2]
[348008205,1736265520045,-500.0,9.862e-05,2]
[348008206,1736265520068,-591.37540323,9.862e-05,2]
[348008207,1736265520091,-500.0,9.862e-05,2]
[348008208,1736265520114,-500.0,9.862e-05,2]
[348008209,1736265520137,-500.0,9.862e-05,2]
[348008210,1736265520163,-500.0,9.862e-05,2]
[348008211,1736265520187,-454.98434993,9.862e-05,2]
[348008212,1736265520212,-500.0,9.862e-05,2]
[348008213,1736265520236,-500.0,9.862e-05,2]
[348008214,1736265520259,-500.0,9.862e-05,2]
[348008215,1736265520282,-500.0,9.862e-05,2]
[348008216,1736265520307,-500.0,9.862e-05,2]
[348008217,1736265520331,-500.0,9.862e-05,2]
[348008218,1736265520357,-500.0,9.862e-05,2]
[348008219,1736265520380,-500.0,9.862e-05,2]
[348008220,1736265520403,-500.0,9.862e-05,2]
[348008221,1736265520429,-500.0,9.862e-05,2]
[348008222,1736265520454,-500.0,9.862e-05,2]
[348008223,1736265520478,-500.0,9.862e-05,2]
[348008224,1736265520502,-719.47,9.862e-05,2]
[348008225,1736265520525,-500.0,9.862e-05,2]